bitfinex/quotes_ETHUSD_20250801
["timestamp","ask_amount","ask_price","bid_price","bid_amount"]
[1754041873810,4.229,3629.1,3628.8,2.75573192]
[1754041874010,4.229,3629.1,3628.9,2.75559978]
[1754041874252,4.229,3629.1,3629.0,2.75558004]
[1754041874630,0.1376,3629.2,3629.1,2.75550411]
[1754041874841,4.3666,3629.2,3629.1,4.53300411]
[1754041875447,6.62,3629.9,3629.7,2.75498946]
[1754041875748,6.62,3629.9,3629.8,4.09357272]
[1754041876048,1.84164628,3630.3,3630.2,2.75466916]
[1754041876215,6.06964628,3630.3,3630.2,4.53216916]
[1754041876411,6.06964628,3630.3,3630.2,5.55286636]
[1754041876943,6.06964628,3630.3,3630.2,5.57766636]
[1754041877916,6.06964628,3630.3,3630.2,2.75466916]
[1754041878458,6.06964628,3630.3,3630.1,2.96393228]
[1754041878638,6.20724628,3630.3,3630.1,2.96393228]
[1754041878814,6.20724628,3630.3,3630.2,2.75466916]
[1754041879014,6.20724628,3630.3,3630.1,2.75472167]
[1754041879342,6.20724628,3630.3,3630.2,2.75466916]
[1754041880111,1.97924628,3630.3,3630.2,2.75466916]
[1754041880349,6.20824628,3630.3,3630.2,2.75466916]
[1754041880563,6.20824628,3630.3,3630.2,4.08866916]
[1754041880761,6.20824628,3630.3,3630.2,2.75466916]
[1754041880933,6.20824628,3630.3,3630.1,2.75473389]
[1754041881337,6.20824628,3630.3,3629.8,0.4637]
[1754041881549,6.20824628,3630.3,3629.9,2.7548953]
[1754041881766,6.20824628,3630.3,3629.7,1.4716]
[1754041882066,6.20824628,3630.3,3630.0,2.75476633]
[1754041882441,6.20824628,3630.3,3630.2,2.75466916]
[1754041882864,6.20824628,3630.3,3630.2,4.08866916]
[1754041883165,1.84164628,3630.3,3630.2,5.28308176]
[1754041883366,6.06864628,3630.3,3630.2,5.28308176]
[1754041883668,6.06964628,3630.3,3630.2,5.28308176]
[1754041883864,1.84164628,3630.3,3630.2,3.48538176]
[1754041884044,6.06964628,3630.3,3630.2,5.28308176]
[1754041884245,6.06964628,3630.3,3630.2,4.08866916]
[1754041884573,6.06964628,3630.3,3630.2,2.75466916]
[1754041885264,6.06964628,3630.3,3630.2,4.55236916]
[1754041885466,6.06964628,3630.3,3630.2,4.68996916]
[1754041885758,6.06964628,3630.3,3630.2,4.08866916]
[1754041885962,6.06964628,3630.3,3630.2,4.55236916]
[1754041885963,1.84164628,3630.3,3630.2,4.55236916]
[1754041886162,6.07564628,3630.3,3630.2,4.97074164]
[1754041886365,6.07564628,3630.3,3630.2,4.08866916]
[1754041886537,6.07564628,3630.3,3630.2,2.75466916]
[1754041886728,6.21324628,3630.3,3629.8,1.334]
[1754041886923,4.234,3630.2,3630.1,2.75474504]
[1754041887130,4.234,3630.2,3630.1,4.08874504]
[1754041887739,4.234,3630.2,3630.1,5.28317923]
[1754041888460,1.84164628,3630.3,3630.2,2.75466916]
[1754041888651,6.07564628,3630.3,3630.2,4.08866916]
[1754041889163,6.07564628,3630.3,3630.2,4.55236916]
[1754041890331,6.07564628,3630.3,3630.2,4.08866916]
[1754041890658,6.07564628,3630.3,3630.2,2.75466916]
[1754041891049,6.07564628,3630.3,3630.2,4.08866916]
[1754041892751,6.07564628,3630.3,3630.2,2.75466916]
[1754041893665,6.07564628,3630.3,3630.1,2.75471161]
[1754041893865,0.1376,3630.2,3630.1,2.75474346]
[1754041894482,0.1376,3630.2,3629.7,0.1376]
[1754041894644,0.1376,3629.8,3629.6,2.75506028]
[1754041894830,4.23,3629.7,3629.6,2.75506028]
[1754041895034,6.0053,3629.7,3629.1,1.334]
[1754041895340,0.1376,3629.5,3629.4,2.75527635]
[1754041895541,4.3696,3629.5,3629.4,2.75527635]
[1754041895742,4.3696,3629.5,3629.3,2.75533584]
[1754041895942,4.3696,3629.5,3629.4,2.75527635]
[1754041896647,0.1376,3629.5,3629.4,4.08927635]
[1754041896845,0.1376,3629.5,3629.4,2.61976382]
[1754041896846,4.231,3629.5,3629.4,2.61976382]
[1754041897089,4.231,3629.5,3629.4,4.69057635]
[1754041897666,0.1376,3630.0,3629.9,2.75489682]
[1754041897880,4.232,3630.0,3629.9,2.75489682]
[1754041898057,4.232,3630.0,3629.9,4.55259682]
[1754041898568,10.0,3632.3,3629.9,0.4637]
[1754041898744,13.679,3632.5,3630.0,5.44385563]
[1754041898939,4.234,3632.4,3630.4,3.55]
[1754041899145,4.234,3632.4,3631.0,3.0]
[1754041899364,4.234,3632.4,3631.9,2.75330652]
[1754041899569,4.234,3632.4,3631.6,1.334]
[1754041899755,1.26283,3632.3,3632.2,2.75315235]
[1754041899945,5.50283,3632.3,3632.2,2.75315235]
[1754041900145,5.50283,3632.3,3631.5,2.75364843]
[1754041900146,7.27813,3632.3,3631.7,2.75348229]
[1754041900383,7.27813,3632.3,3631.3,3.0]
[1754041900676,7.27813,3632.3,3631.3,1.334]
[1754041900977,3.4403131,3632.2,3631.3,1.334]
[1754041901280,1.26283,3632.3,3631.4,0.4637]
[1754041901443,6.619,3632.5,3632.4,2.75300077]
[1754041901646,10.859,3632.5,3632.4,4.55070077]
[1754041903548,10.859,3632.5,3632.4,2.75300077]
[1754041903953,10.859,3632.5,3632.2,2.75315235]
[1754041904167,10.859,3632.5,3631.7,1.334]
[1754041904168,0.4427,3632.4,3631.7,1.334]
[1754041904371,4.241,3632.3,3632.1,2.75316647]
[1754041904575,4.241,3632.3,3632.2,2.75315235]
[1754041905148,6.619,3632.5,3632.4,2.75300077]
[1754041905500,10.86,3632.5,3632.4,4.55070077]
[1754041905850,4.241,3632.5,3632.4,5.28108608]
[1754041906187,6.616,3633.8,3632.8,2.75268482]
[1754041906490,4.241,3633.7,3633.3,2.7522643]
[1754041906845,4.241,3633.7,3633.1,1.3186]
[1754041907043,1.0857,3633.6,3633.2,2.75239458]
[1754041907260,1.0857,3633.6,3632.8,1.7823]
[1754041907261,4.24,3633.5,3633.1,2.75247034]
[1754041907459,4.24,3633.5,3633.2,2.75232978]
[1754041908375,4.24,3633.5,3633.2,2.75237321]
[1754041908744,0.1376,3633.4,3633.2,2.75237321]
[1754041908948,4.24,3633.3,3632.9,2.89017958]
[1754041909246,1.3448,3633.2,3632.0,1.3186]
[1754041909487,0.1376,3632.6,3632.2,2.75308617]
[1754041909648,4.24,3632.5,3632.2,2.75308617]
[1754041909849,6.0151,3632.5,3632.2,2.75308617]
[1754041910182,6.0151,3632.5,3632.0,2.89090238]
[1754041910183,0.1376,3632.3,3632.0,2.75328621]
[1754041910383,4.24,3632.2,3632.1,2.75322816]
[1754041910599,4.24,3632.2,3632.0,2.75329744]
[1754041911097,4.24,3632.2,3632.1,2.75322816]
[1754041912599,4.24,3632.2,3632.1,4.52742816]
[1754041913880,4.24,3632.2,3632.1,4.07182816]
[1754041914396,4.24,3632.2,3632.1,2.75322816]
[1754041916298,4.24,3632.2,3631.8,3.0]
[1754041916299,4.664,3632.2,3631.8,3.0]
[1754041916501,4.664,3632.2,3632.0,2.75325515]
[1754041916672,4.664,3632.2,3632.1,2.75322816]
[1754041916867,4.24,3632.2,3632.1,2.75322816]
[1754041918004,4.24,3632.2,3632.0,2.75327388]
[1754041918408,4.24,3632.2,3631.9,2.75335764]
[1754041918722,1.7626,3632.1,3631.3,2.75383471]
[1754041918927,0.1376,3631.8,3631.2,0.1376]
[1754041919078,4.235,3631.7,3630.9,1.3186]
[1754041919418,0.1376,3631.5,3631.4,2.75375888]
[1754041919621,4.235,3631.5,3631.4,2.75375888]
[1754041919909,4.235,3631.5,3631.4,4.07235888]
[1754041921138,4.235,3631.5,3631.4,2.75375888]
[1754041921496,4.235,3631.5,3631.2,2.89144596]
[1754041921497,4.235,3631.5,3631.2,0.1376]
[1754041921814,1.7626,3631.4,3630.9,2.75407507]
[1754041922033,6.615,3631.6,3631.3,2.75378297]
[1754041922176,4.9065,3631.5,3631.2,2.75384341]
[1754041922381,0.6615,3631.5,3630.9,1.3186]
[1754041922583,6.615,3631.6,3631.5,2.75368305]
[1754041922783,10.861,3631.6,3631.5,4.07228305]
[1754041923693,6.615,3631.6,3631.5,4.07228305]
[1754041923895,10.861,3631.6,3631.5,4.07228305]
[1754041924104,0.4303,3635.2,3631.6,0.55]
[1754041924280,2.75072388,3635.5,3633.5,2.75216733]
[1754041924281,0.4303,3634.5,3633.5,2.75216733]
[1754041924488,5.3577,3633.6,3633.5,2.75216733]
[1754041924679,4.272,3633.6,3633.5,4.07076733]
[1754041925001,6.615,3634.8,3633.5,4.07076733]
[1754041925002,6.615,3634.8,3634.6,2.7512676]
[1754041925211,4.279,3634.7,3634.6,2.7512676]
[1754041925726,2.75035426,3635.9,3634.6,2.7512676]
[1754041925727,3.439,3637.0,3634.6,4.0698676]
[1754041925933,3.439,3637.0,3633.8,5.75191995]
[1754041925934,6.615,3636.4,3634.9,2.75110732]
[1754041926107,6.615,3636.4,3635.1,3.0]
[1754041926427,4.282,3636.3,3636.1,2.7501276]
[1754041926592,6.615,3636.4,3636.1,2.7501276]
[1754041926790,4.9435,3636.3,3636.1,2.7501276]
[1754041926994,4.9435,3636.3,3635.7,1.3186]
[1754041927209,4.9435,3636.3,3636.1,2.7501429]
[1754041927803,4.9435,3636.3,3635.7,1.3186]
[1754041927804,4.9435,3636.3,3636.0,2.75025319]
[1754041928142,4.9435,3636.3,3635.7,1.3186]
[1754041928311,1.15585,3636.2,3635.4,3.0]
[1754041928493,1.15585,3636.2,3634.5,0.55]
[1754041928494,2.75029843,3636.0,3634.5,0.4556]
[1754041928701,2.75042748,3635.8,3635.1,3.0]
[1754041928897,8.81175422,3635.9,3635.1,3.0]
[1754041929119,8.81175422,3635.9,3634.7,1.3186]
[1754041929120,6.0614,3635.9,3634.7,1.3186]
[1754041929319,0.60614,3635.8,3634.7,1.3186]
[1754041929506,3.35662402,3635.8,3634.8,2.751183]
[1754041929828,0.60614,3635.8,3635.1,2.75095137]
[1754041930008,0.60614,3635.8,3634.9,2.75110328]
[1754041930432,0.60614,3635.8,3635.3,2.75076141]
[1754041930634,0.531644,3635.7,3635.1,2.75095595]
[1754041930834,0.531644,3635.7,3635.0,2.75101634]
[1754041930995,6.0614,3635.6,3634.5,3.0]
[1754041931203,1.7814,3635.5,3634.2,1.3186]
[1754041931398,4.53207056,3635.5,3634.7,2.75124935]
[1754041931611,0.1376,3634.7,3634.4,3.0]
[1754041931933,4.279,3634.6,3634.5,2.75141009]
[1754041932292,4.279,3634.6,3634.5,4.07001009]
[1754041932493,4.279,3634.6,3634.5,4.52561009]
[1754041932731,4.279,3634.6,3634.5,2.75141009]
[1754041932931,4.279,3634.6,3634.4,2.75146047]
[1754041933131,0.1376,3634.5,3634.2,5.75161504]
[1754041933303,0.1376,3634.5,3634.4,2.75141796]
[1754041933633,0.1376,3634.5,3634.0,1.4562]
[1754041933835,4.72066,3634.6,3633.6,1.4562]
[1754041934013,0.1376,3634.1,3634.0,5.75171891]
[1754041934213,4.4156,3634.1,3634.0,5.75171891]
[1754041936052,4.4156,3634.1,3633.6,4.2082506]
[1754041936053,4.4156,3634.1,3633.9,2.75181969]
[1754041936340,4.4156,3634.1,3634.0,2.75178866]
[1754041937138,5.17366457,3634.1,3633.8,2.75188784]
[1754041937298,5.03606457,3634.1,3633.7,3.0]
[1754041937502,0.1376,3633.9,3633.5,2.75215725]
[1754041937814,0.1376,3633.9,3633.8,2.75194011]
[1754041939334,0.1376,3633.9,3633.5,1.3591]
[1754041939515,0.1376,3633.9,3633.7,2.7519994]
[1754041939898,0.60905646,3633.9,3633.5,2.75210194]
[1754041940351,0.60905646,3633.9,3633.3,0.1376]
[1754041940709,0.60905646,3633.9,3633.7,2.7519636]
[1754041940941,0.1376,3633.9,3633.8,2.75194011]
[1754041941105,4.271,3633.9,3633.8,4.57197125]
[1754041945417,4.271,3633.9,3633.8,2.75187125]
[1754041945850,4.8677,3633.9,3633.7,2.75199757]
[1754041946057,0.1376,3633.6,3633.1,1.56415035]
[1754041946217,0.1376,3633.6,3633.5,2.7521081]
[1754041950556,0.1376,3633.6,3633.5,4.1112081]
[1754041951853,4.262,3633.6,3633.5,4.24886733]
[1754041952058,4.262,3633.6,3633.5,2.75216733]
[1754041952752,4.262,3633.6,3633.5,4.57226733]
[1754041953521,4.262,3633.6,3633.5,2.75216733]
[1754041955538,4.262,3633.6,3633.4,2.75222903]
[1754041955745,0.43996,3633.5,3633.4,2.75222903]
[1754041956262,0.43996,3633.5,3633.1,0.20505035]
[1754041956462,0.43996,3633.5,3633.4,2.75224307]
[1754041956667,0.57756,3633.5,3633.4,2.75224307]
[1754041959153,0.57756,3633.5,3633.3,2.75229665]
[1754041959365,0.57756,3633.5,3633.0,0.1376]
[1754041959366,0.57756,3633.5,3633.0,1.4967]
[1754041959572,0.57756,3633.5,3633.4,2.75224307]
[1754041959951,0.1376,3633.5,3633.4,2.75224307]
[1754041960450,0.1376,3633.5,3633.4,4.11134307]
[1754041961357,0.1376,3633.5,3633.4,2.75224307]
[1754041961940,0.1376,3633.5,3633.4,4.11134307]
[1754041962448,4.258,3633.5,3633.4,1.8201]
[1754041962659,4.258,3633.5,3633.4,2.75224307]
[1754041962846,4.258,3633.5,3633.0,0.1376]
[1754041962847,4.69756,3633.5,3633.0,0.1376]
[1754041963030,4.69756,3633.5,3633.4,2.75224307]
[1754041963233,4.69756,3633.5,3633.3,2.75229776]
[1754041963667,4.83516,3633.5,3633.3,2.75229776]
[1754041963970,4.83516,3633.5,3633.4,2.75224307]
[1754041964354,4.83516,3633.5,3633.2,2.75234013]
[1754041964566,4.83516,3633.5,3633.0,0.1376]
[1754041964869,4.83516,3633.5,3633.0,1.4967]
[1754041965239,4.83516,3633.5,3633.2,2.75233129]
[1754041965634,4.83516,3633.5,3633.3,2.7522975]
[1754041966090,4.83516,3633.5,3633.4,2.75224307]
[1754041966584,4.83516,3633.5,3633.0,0.1376]
[1754041966737,2.221216,3633.4,3632.4,1.5208]
[1754041966941,0.1376,3632.7,3632.2,0.4677]
[1754041967241,0.1376,3632.7,3632.3,1.3832]
[1754041967242,4.256,3632.6,3632.3,1.3832]
[1754041967768,4.256,3632.6,3632.0,1.3832]
[1754041968070,0.1376,3632.4,3632.0,1.3832]
[1754041968273,0.1376,3632.4,3632.1,1.3832]
[1754041968274,4.255,3632.3,3632.1,1.3832]
[1754041968969,4.255,3632.3,3631.9,0.1376]
[1754041969169,4.255,3632.3,3632.0,1.3832]
[1754041970076,4.255,3632.3,3632.0,4.13649697]
[1754041970276,4.255,3632.3,3632.0,1.3832]
[1754041970981,4.255,3632.3,3631.9,0.1376]
[1754041971273,4.255,3632.3,3631.8,0.1376]
[1754041971473,4.255,3632.3,3631.9,4.13657253]
[1754041972282,4.255,3632.3,3632.0,1.3832]
[1754041972580,4.255,3632.3,3632.1,1.8509]
[1754041972776,4.255,3632.3,3632.2,1.8509]
[1754041972957,4.255,3632.3,3632.2,1.3832]
[1754041974047,4.255,3632.3,3631.9,1.3832]
[1754041974386,4.255,3632.3,3632.0,1.3832]
[1754041976672,4.255,3632.3,3631.9,2.95572027]
[1754041976865,4.255,3632.3,3631.9,4.33892027]
[1754041977069,4.255,3632.3,3631.9,2.95572027]
[1754041977271,4.255,3632.3,3632.0,1.3832]
[1754041977582,4.255,3632.3,3632.0,4.13649178]
[1754041977806,4.255,3632.3,3632.1,4.13642676]
[1754041978170,4.255,3632.3,3632.2,1.3832]
[1754041978371,4.255,3632.3,3631.9,2.95568979]
[1754041978674,4.255,3632.3,3632.1,1.3832]
[1754041979099,4.246,3632.4,3632.2,1.8509]
[1754041979283,4.246,3632.4,3632.3,1.9885]
[1754041979503,4.246,3632.4,3632.3,4.74157656]
[1754041981607,0.1376,3632.9,3632.8,2.75269764]
[1754041981819,4.3876,3632.9,3632.8,2.75269764]
[1754041982062,4.25,3632.9,3632.8,2.75269764]
[1754041982414,4.25,3632.9,3632.8,4.13589764]
[1754041982668,4.25,3632.9,3632.6,0.21164761]
[1754041982871,2.17646,3632.8,3632.0,1.3832]
[1754041983035,0.1376,3632.6,3631.7,0.1376]
[1754041983240,0.1376,3632.0,3631.4,0.34242493]
[1754041983571,5.9887,3631.9,3631.3,0.1376]
[1754041983776,4.7254,3631.9,3631.6,2.75353422]
[1754041983975,5.5143,3631.9,3631.6,2.75353422]
[1754041984118,4.251,3631.9,3631.5,2.75366172]
[1754041984319,0.1376,3632.0,3631.9,2.75337977]
[1754041984633,4.251,3632.0,3631.9,2.75337977]
[1754041984831,4.251,3632.0,3631.9,4.74187977]
[1754041985253,0.1376,3632.6,3632.4,2.75299163]
[1754041985448,4.251,3632.5,3632.2,2.75311566]
[1754041986254,4.251,3632.5,3632.4,2.75300077]
[1754041988057,0.1376,3632.6,3632.4,2.75300077]
[1754041988252,4.248,3632.5,3632.3,2.75306916]
[1754041988448,0.4744,3632.4,3631.5,1.3832]
[1754041988639,0.1376,3632.2,3631.9,2.75334677]
[1754041988840,4.7234,3632.1,3631.7,2.7534831]
[1754041989039,4.7234,3632.1,3631.8,2.75345378]
[1754041989338,4.7234,3632.1,3631.9,2.75337897]
[1754041989544,4.7234,3632.1,3631.8,2.75343519]
[1754041989726,4.7234,3632.1,3631.9,2.75330697]
[1754041989932,4.7234,3632.1,3632.0,2.75330396]
[1754041990251,4.7234,3632.1,3631.8,2.75343519]
[1754041990252,4.249,3632.1,3631.8,2.75343519]
[1754041990769,4.249,3632.1,3632.0,2.75330396]
[1754041990945,4.249,3632.1,3631.8,2.75345558]
[1754041991444,4.249,3632.1,3632.0,2.75330396]
[1754041991640,4.249,3632.1,3631.7,2.7535241]
[1754041991870,5.9867,3632.1,3631.8,2.75344111]
[1754041992172,4.7234,3632.1,3631.8,2.75344111]
[1754041992554,4.249,3632.1,3631.9,2.75337516]
[1754041992962,4.249,3632.1,3631.7,2.75350346]
[1754041992963,4.249,3632.1,3631.8,2.75340402]
[1754041993182,4.249,3632.1,3631.7,2.75350409]
[1754041993337,4.249,3632.1,3631.9,2.75337203]
[1754041993877,4.249,3632.1,3631.7,2.75352152]
[1754041994378,4.3866,3632.1,3631.7,2.75352152]
[1754041994671,4.99903,3632.1,3631.5,0.1376]
[1754041994881,5.33583,3632.1,3631.7,2.7534734]
[1754041995083,0.1376,3631.8,3631.7,2.7534734]
[1754041995287,4.3826,3631.8,3631.7,2.7534734]
[1754041996359,4.3826,3631.8,3631.6,2.75357661]
[1754041996668,4.3826,3631.8,3631.7,2.7535314]
[1754041997268,6.629343,3631.8,3630.7,4.2678]
[1754041997474,0.1376,3631.6,3631.1,2.75394166]
[1754041997668,5.5001,3631.5,3631.1,2.75394166]
[1754041997892,0.1376,3631.2,3631.1,2.75394166]
[1754041998199,4.3826,3631.2,3631.1,2.75394166]
[1754041999394,4.3826,3631.2,3631.0,2.75403245]
[1754041999802,4.3826,3631.2,3630.7,1.4054]
[1754041999803,4.86523,3631.2,3630.7,0.1376]
[1754042000101,5.30893,3631.2,3631.0,2.75405307]
[1754042000263,5.30893,3631.2,3630.4,2.75448416]
[1754042000264,1.6819,3631.1,3630.4,2.75446707]
[1754042000460,0.640953,3631.0,3630.2,2.75464287]
[1754042000777,0.1376,3630.5,3630.3,2.75459153]
[1754042001103,4.244,3630.4,3630.3,2.75459328]
[1754042001888,4.244,3630.4,3630.2,2.75466348]
[1754042002198,4.244,3630.4,3630.3,2.75459328]
[1754042003800,0.1376,3630.5,3630.4,2.7545174]
[1754042004019,4.3796,3630.5,3630.4,4.4930174]
[1754042004168,4.242,3630.5,3630.4,5.35537847]
[1754042004587,4.242,3630.5,3630.4,3.61687847]
[1754042004791,4.242,3630.5,3630.4,4.6306174]
[1754042005530,0.1376,3631.0,3630.9,2.75413809]
[1754042005720,4.3796,3631.0,3630.9,2.75413809]
[1754042005911,4.3796,3631.0,3630.9,4.49263809]
[1754042006246,4.3786,3631.0,3630.9,4.49263809]
[1754042006537,6.615,3631.3,3631.2,2.75391055]
[1754042006699,10.856,3631.3,3631.2,1.2678]
[1754042006892,10.856,3631.3,3631.1,2.75397896]
[1754042007117,10.856,3631.3,3631.2,2.75391055]
[1754042007430,10.856,3631.3,3631.2,1.2678]
[1754042007606,10.856,3631.3,3631.2,4.02171055]
[1754042007811,10.856,3631.3,3631.2,1.2678]
[1754042008541,10.856,3631.3,3631.2,4.02171055]
[1754042008829,10.856,3631.3,3631.0,2.75405558]
[1754042009038,0.1376,3631.2,3631.0,2.75405558]
[1754042009239,0.1376,3631.2,3631.0,4.02185558]
[1754042009442,0.1376,3631.2,3631.1,2.75398639]
[1754042009803,0.1376,3631.2,3631.1,4.02178639]
[1754042010615,0.1376,3631.2,3631.1,2.75398639]
[1754042011736,0.1376,3631.2,3631.0,2.75403454]
[1754042011943,1.23696,3631.2,3630.7,0.1376]
[1754042012189,4.42350141,3631.1,3630.7,0.1376]
[1754042012389,4.239,3631.0,3630.7,0.1376]
[1754042012589,8.66258738,3631.0,3630.3,2.75459328]
[1754042012794,0.1376,3630.5,3630.3,2.75459328]
[1754042012989,0.1376,3630.5,3630.1,2.75473408]
[1754042012990,0.1376,3630.5,3630.4,2.7545174]
[1754042013296,4.3766,3630.5,3630.3,2.75457719]
[1754042013454,4.3766,3630.5,3630.4,2.7545174]
[1754042013653,4.3766,3630.5,3630.3,2.75459188]
[1754042014301,4.3766,3630.5,3630.4,2.7545174]
[1754042014600,4.3766,3630.5,3630.1,1.2678]
[1754042014759,4.3766,3630.5,3630.4,2.7545174]
[1754042016490,4.3766,3630.5,3630.3,2.7545701]
[1754042017012,4.3766,3630.5,3630.2,4.02245833]
[1754042017302,6.62158319,3630.5,3629.8,1.2678]
[1754042017503,0.1376,3630.3,3629.8,1.2678]
[1754042017661,4.235,3630.2,3629.8,1.2678]
[1754042017866,0.1376,3630.1,3629.8,4.022755]
[1754042018295,0.1376,3630.1,3629.9,2.75489682]
[1754042018471,0.1376,3630.1,3629.9,4.02269682]
[1754042018670,0.1376,3630.1,3629.9,1.2678]
[1754042019111,0.1376,3630.1,3630.0,2.75482093]
[1754042019614,0.1376,3630.1,3629.9,4.02267686]
[1754042019769,0.1376,3630.1,3629.9,1.2678]
[1754042019964,0.1376,3630.1,3629.9,4.02264553]
[1754042020207,0.1376,3630.1,3630.0,2.75482093]
[1754042021370,0.1376,3630.1,3629.6,1.2678]
[1754042021578,0.1376,3630.1,3629.9,2.75484269]
[1754042022272,0.1376,3630.1,3630.0,2.75482093]
[1754042022473,0.1376,3630.1,3629.9,2.75486213]
[1754042022673,0.1376,3630.1,3630.0,2.75482093]
[1754042022974,0.1376,3630.1,3629.8,1.2678]
[1754042023174,0.1376,3630.1,3630.0,2.75482093]
[1754042023677,0.1376,3630.1,3630.0,4.02262093]
[1754042023991,0.1376,3630.1,3629.5,0.1376]
[1754042023992,0.1376,3630.1,3629.9,2.75486647]
[1754042024596,0.1376,3630.1,3629.5,0.6083]
[1754042024597,0.1376,3630.1,3630.0,2.75482093]
[1754042024797,0.1376,3630.1,3629.5,0.6083]
[1754042024798,1.71186891,3630.1,3629.5,0.1376]
[1754042024979,0.1376,3629.6,3629.0,1.4054]
[1754042025180,4.233,3629.5,3629.4,2.75526544]
[1754042025399,4.233,3629.5,3629.4,4.02306544]
[1754042027810,15.60308912,3629.5,3629.1,2.75545441]
[1754042028016,15.60308912,3629.5,3629.2,2.75542777]
[1754042028311,15.60308912,3629.5,3629.1,2.75547114]
[1754042028479,15.60308912,3629.5,3629.2,2.75542207]
[1754042028891,0.1376,3629.3,3629.1,1.3003]
[1754042029113,4.233,3629.2,3629.1,4.05580411]
[1754042029314,4.233,3629.2,3629.1,1.3003]
[1754042029510,4.233,3629.2,3629.1,4.05580411]
[1754042030830,5.80706891,3629.2,3628.6,0.1376]
[1754042031032,11.37008912,3629.0,3628.4,3.0]
[1754042031233,11.37008912,3629.0,3628.9,2.75565598]
[1754042031234,11.50768912,3629.0,3628.9,2.75565598]
[1754042031394,11.50768912,3629.0,3628.8,2.75569932]
[1754042031395,15.73868912,3629.0,3628.8,2.75569932]
[1754042031594,15.73868912,3629.0,3628.9,2.75565598]
[1754042031900,15.73868912,3629.0,3628.6,1.3003]
[1754042032212,15.73868912,3629.0,3628.7,2.75575656]
[1754042032413,15.73868912,3629.0,3628.7,2.75580649]
[1754042032597,15.73868912,3629.0,3628.7,2.75577971]
[1754042032802,15.73868912,3629.0,3628.8,2.75571684]
[1754042033236,15.73868912,3629.0,3628.7,2.75580712]
[1754042033537,17.58809821,3629.0,3628.4,1.3003]
[1754042033697,0.1376,3628.6,3628.3,2.75609879]
[1754042033899,4.229,3628.5,3628.4,2.75603571]
[1754042034549,4.229,3628.5,3628.3,4.05638026]
[1754042034727,3.23336891,3628.4,3626.5,2.75746404]
[1754042034901,0.1376,3627.8,3627.4,2.75672823]
[1754042035095,4.233,3627.7,3627.4,2.75672823]
[1754042035316,4.233,3627.7,3627.6,2.7565935]
[1754042035607,4.233,3627.7,3627.5,1.3003]
[1754042035608,0.1376,3627.6,3627.5,1.3003]
[1754042035836,0.1376,3627.6,3627.5,4.4954195]
[1754042036212,0.1376,3627.6,3627.5,2.7567195]
[1754042036719,0.1376,3627.6,3627.5,4.0570195]
[1754042037299,0.57466,3627.6,3627.3,2.75686477]
[1754042037497,0.43706,3627.6,3627.4,2.75679361]
[1754042037699,0.1376,3627.5,3627.4,2.7567955]
[1754042038737,0.1376,3627.5,3627.3,2.75685931]
[1754042038943,4.233,3627.4,3627.3,2.75685931]
[1754042039305,4.233,3627.4,3626.7,0.4384]
[1754042039502,0.1376,3627.3,3626.9,4.05745362]
[1754042039736,0.1376,3627.3,3626.9,1.3003]
[1754042039937,4.233,3627.4,3626.7,0.4384]
[1754042040139,0.1376,3627.0,3626.5,0.1376]
[1754042040306,4.232,3626.9,3626.5,1.4379]
[1754042040516,0.4371,3628.3,3626.6,1.7387]
[1754042040746,10.0,3628.6,3627.8,2.75649153]
[1754042040918,10.9956,3627.9,3627.8,4.49519153]
[1754042041245,4.237,3628.3,3628.2,2.75618764]
[1754042041546,4.24,3628.3,3628.2,1.7387]
[1754042041729,4.24,3628.3,3628.2,2.75618764]
[1754042041931,4.664,3628.3,3628.1,2.75625724]
[1754042042129,0.424,3628.3,3628.2,2.75618764]
[1754042042345,4.243,3628.3,3627.9,2.7563591]
[1754042042503,1.6196,3628.2,3627.3,1.3003]
[1754042043019,19.30359628,3629.3,3627.5,2.7567195]
[1754042043340,19.30359628,3629.3,3627.4,2.7567955]
[1754042043341,5.8616,3629.0,3628.5,2.755911]
[1754042043544,1.00763452,3628.9,3628.5,2.755911]
[1754042043839,4.243,3628.8,3628.4,2.75596452]
[1754042044050,1.6196,3628.7,3628.0,2.75626668]
[1754042044251,1.6196,3628.7,3628.1,2.75620443]
[1754042044455,0.4371,3628.6,3628.0,2.75631451]
[1754042044628,2.63023292,3628.5,3628.0,2.75631451]
[1754042044953,1.86230686,3630.6,3628.1,1.3003]
[1754042045113,4.244,3629.0,3628.9,2.7556377]
[1754042045315,7.8035,3629.6,3629.0,2.7555524]
[1754042045633,4.254,3629.5,3629.0,2.75556337]
[1754042045804,5.77896556,3629.4,3629.0,2.75556337]
[1754042046011,5.77896556,3629.4,3628.9,4.0559339]
[1754042046339,5.77896556,3629.4,3629.1,2.75549421]
[1754042046557,5.77896556,3629.4,3629.0,2.7555554]
[1754042046722,5.77896556,3629.4,3628.9,1.3003]
[1754042046723,1.52496556,3629.4,3629.1,2.75549695]
[1754042046922,4.254,3629.3,3629.0,2.75556068]
[1754042047320,4.253,3629.2,3629.0,1.3003]
[1754042047546,4.253,3629.2,3628.9,2.75562737]
[1754042047702,6.621,3629.6,3628.6,0.4384]
[1754042047902,4.253,3629.5,3629.1,2.75545861]
[1754042048143,1.0874,3629.4,3629.1,4.05575861]
[1754042048448,4.252,3629.3,3629.2,2.75538167]
[1754042049110,4.252,3629.3,3629.1,4.05578155]
[1754042049305,4.252,3629.3,3629.1,1.3003]
[1754042049578,4.252,3629.3,3629.1,4.05579417]
[1754042049920,6.621,3629.6,3629.2,2.75541385]
[1754042050121,4.251,3629.5,3629.2,2.75541385]
[1754042050305,4.251,3629.4,3629.1,4.05580149]
[1754042050508,7.32681,3629.6,3629.3,2.75534035]
[1754042050711,4.25,3629.5,3629.2,2.75540894]
[1754042051227,0.1376,3629.3,3629.2,2.75540894]
[1754042051430,4.3866,3629.3,3629.2,2.75540894]